Cogmind - Beta 9.2 @@@ ROGUE MODE // 2019.11.20 @ 22:41:22 Player: Fleshy Vegetable Bird Result: Destroyed by P-80 Master with Gamma Rifle Performance ------------- Evolutions (9) 4500 Regions Visited (29) 5800 Robots Destroyed (213) 1065 Value Destroyed (13820) 13820 Prototype IDs (26) 520 Alien Tech Used (0) 0 Bonus (14989) 14989 TOTAL SCORE: 40694 Bonus ------- Triggered Max Security 1000 High Alert Combat Kills 1045 Follower Combat Kills 7287 Entered Garrisons 2000 Used RIF Installer 5000 Aligned with FarCom 300 Friendly Fire -1643 Cogmind --------- Core Integrity 0/1600 Matter 290/300 Energy 60/100 System Corruption 3% Temperature Cool (0) Movement Core (50) Location -1/Access Parts ------- > --- POWER (1) -------- (None) > --- PROPULSION (4) --- (None) > --- UTILITY (16) ----- Relay Coupler [Sentry] (25) > --- WEAPON (4) ------- (None) > --- INVENTORY (4) ---- Particle Reactor Heavy Machine Gun Peak State ------------ > --- POWER ------------ Reinforced Antimatter Reactor > --- PROPULSION ------- Medium Treads Medium Treads Improved Heavy Siege Treads > --- UTILITY ---------- High-capacity Storage Unit High-capacity Storage Unit Advanced Targeting Computer Advanced Phase Shifter Hacking Suite Advanced Hacking Suite Relay Coupler [Swarmer] Relay Coupler [Grunt] Relay Coupler [Brawler] Relay Coupler [Duelist] Relay Coupler [Sentry] Relay Coupler [Sentry] Relay Coupler [Sentry] Relay Coupler [Specialist] Relay Coupler [Hunter] Relay Coupler [Behemoth] > --- WEAPON ----------- KE Penetrator KE Penetrator KE Penetrator Advanced Remote Datajack > --- INVENTORY -------- Reinforced Antimatter Reactor Medium Treads Advanced Heat Sink Improved Medium Armor Plating Remote Force Field Relay Coupler [NC] Relay Coupler [Swarmer] Relay Coupler [Swarmer] Relay Coupler [Grunt] Relay Coupler [Demolisher] Enhanced Quantum Rifle Enhanced Quantum Rifle Enhanced Nova Cannon Enhanced Nova Cannon Heavy Machine Gun Gamma Bomb Array Gamma Bomb Array Micro-nuke Launcher Power Sword [Rating: 131] Favorites ----------- Power Reinforced Antimatter Reactor Engine Reinforced Deuterium Engine Power Core Light Nuclear Core Reactor Reinforced Antimatter Reactor Propulsion Light Treads Treads Light Treads Leg Biometal Leg Wheel Wheel Hover Unit Improved Antigrav System Utility High-capacity Storage Unit Device Advanced Heat Sink Storage High-capacity Storage Unit Processor Advanced Targeting Computer Hackware Relay Coupler [Sentry] Protection Light Armor Plating Weapon Gauss Rifle Energy Gun Particle Gun Energy Cannon Heavy Particle Cannon Ballistic Gun Gauss Rifle Ballistic Cannon Heavy Gauss Cannon Launcher Improved Grenade Launcher Special Weapon Improved Remote Datajack Impact Weapon Powered Hammer Slashing Weapon Katana Build | -11 -10 -10 -9 -9 -9 -8 -8 -8 -8 -8 -7 -7 -7 -7 -7 -7 -6 -6 -5 -5 -4 -4 -3 -3 -2 -2 -1 -1 -1 ------- Run | Scr Mat Min Mat Min Exi Min Mat Gar Mat Gar Fac Was Fac Gar Fac Gar Fac Gar Fac Gar Fac Gar Res Gar Res Gar Acc Gar Acc Slots Evolved 18 | . . . 2 . . . 2 . . . 2 . . . . . 2 . 2 . 2 . 2 . 2 . 2 . . Power . | . . . . . . . . . . . . . . . . . . . . . . . . . . . . . . Propulsion 2 | . . . . . . . 1 . . . . . . . . . . . . . . . . . 1 . . . . Utility 14 | . . . 1 . . . 1 . . . 2 . . . . . 2 . 2 . 2 . 2 . 1 . 1 . . Weapon 2 | . . . 1 . . . . . . . . . . . . . . . . . . . . . . . 1 . . Parts Attached 347 | 8 8 4 16 3 1 3 2 11 4 17 2 2 3 4 4 13 7 34 13 12 15 29 1 38 12 42 9 18 12 Power 17 | 1 . 1 1 . 1 . . 1 . 2 . . . 1 . 1 . 2 . 1 . . . 3 . 1 . 1 . Engine 8 | 1 . 1 1 . . . . 1 . . . . . 1 . 1 . 1 . 1 . . . . . . . . . Core 4 | . . . . . 1 . . . . 2 . . . . . . . 1 . . . . . . . . . . . Reactor 5 | . . . . . . . . . . . . . . . . . . . . . . . . 3 . 1 . 1 . Propulsion 50 | 4 . 2 3 1 . 1 1 2 2 5 . 1 1 . 1 3 . 6 . 2 1 . . 4 2 6 . 2 . Treads 37 | . . . 2 1 . 1 1 2 2 5 . 1 1 . 1 3 . 4 . 2 1 . . 2 2 4 . 2 . Leg 4 | . . . . . . . . . . . . . . . . . . 2 . . . . . . . 2 . . . Wheel 7 | 4 . 2 1 . . . . . . . . . . . . . . . . . . . . . . . . . . Hover 2 | . . . . . . . . . . . . . . . . . . . . . . . . 2 . . . . . Flight . | . . . . . . . . . . . . . . . . . . . . . . . . . . . . . . Utility 134 | 2 3 . 1 1 . 1 . 5 1 2 2 1 1 1 1 2 2 7 5 6 8 19 1 16 6 19 5 9 7 Device 20 | . . . . . . . . 1 . . 1 . . . . . . 1 1 . 2 1 1 1 1 4 1 3 2 Storage 12 | 2 3 . 1 . . . . 2 . . . . . . 1 . . . . . . . . 2 1 . . . . Processor 4 | . . . . . . . . . . . . . . . . . . . . . 1 1 . . . 2 . . . Hackware 77 | . . . . . . . . . . . 1 . 1 . . 2 2 6 3 6 4 14 . 12 3 11 3 5 4 Protection 21 | . . . . 1 . 1 . 2 1 2 . 1 . 1 . . . . 1 . 1 3 . 1 1 2 1 1 1 Artifact . | . . . . . . . . . . . . . . . . . . . . . . . . . . . . . . Weapon 146 | 1 5 1 11 1 . 1 1 3 1 8 . . 1 2 2 7 5 19 8 3 6 10 . 15 4 16 4 6 5 Energy Gun 23 | 1 . . 4 . . . . 1 . 3 . . . . . . . 5 . 1 . . . 4 . 3 . 1 . Energy Cannon 25 | . . . 2 . . . 1 1 . 3 . . . . . . . 3 2 1 3 5 . 1 . . . 2 1 Ballistic Gun 35 | . 4 . 2 . . . . . . 1 . . . 2 1 3 2 4 . . . 1 . 5 1 6 1 2 . Ballistic Cannon 4 | . . . . . . . . . . . . . . . . . . . . . 1 . . 2 . 1 . . . Launcher 9 | . . 1 2 . . 1 . 1 . . . . . . . 2 . . . . . . . . . . . . 2 Special Weapon 25 | . 1 . . . . . . . . . . . . . . 1 1 5 3 1 1 2 . 2 2 4 1 1 . Impact Weapon 1 | . . . . . . . . . . . . . . . . . . . . . . . . . . 1 . . . Slashing Weapon 24 | . . . 1 1 . . . . 1 1 . . 1 . 1 1 2 2 3 . 1 2 . 1 1 1 2 . 2 Piercing Weapon . | . . . . . . . . . . . . . . . . . . . . . . . . . . . . . . Special Melee Weapon . | . . . . . . . . . . . . . . . . . . . . . . . . . . . . . . Unidentified Prototypes 4 | . . . 1 . . . . . . . . . . . . . . . . . 2 . 1 . . . . . . Parts Lost 96 | . 2 3 6 1 . 1 . . 1 5 . . . . . 2 . 10 . 3 . 9 . 14 1 14 . 1 23 Power 6 | . . 1 1 . . . . . . . . . . . . . . 1 . . . . . 3 . . . . . Propulsion 24 | . . 2 1 1 . 1 . . . 2 . . . . . 1 . 4 . 2 . 1 . 2 . 2 . 1 4 Utility 30 | . . . . . . . . . . . . . . . . . . 2 . . . 5 . 2 1 8 . . 12 Weapon 36 | . 2 . 4 . . . . . 1 3 . . . . . 1 . 3 . 1 . 3 . 7 . 4 . . 7 Highest Loss Streak 12 | . 2 2 3 1 . 1 . . 1 4 . . . . . 2 . 5 . 3 . 3 . 12 1 8 . 1 11 Average Slot Usage (%) 92 | . 98 93 85 94 100 99 90 99 96 95 100 96 92 92 92 92 92 98 93 99 89 85 83 85 90 88 95 95 78 Engine 3 | . 14 13 11 11 . . . 6 9 3 . . . 2 7 7 6 5 5 5 5 5 4 . . . . . . Core 1 | . . . . . 10 11 9 2 . 5 7 7 7 4 . . . . . . . . . . . . . . . Reactor 1 | . . . . . . . . . . . . . . . . . . . . . . . . 3 4 4 4 4 2 Treads 14 | . . . 11 22 22 21 27 27 27 23 23 19 15 15 15 15 20 19 17 16 11 7 4 3 7 8 12 12 10 Wheel 1 | . 28 22 9 . . . . . . . . . . . . . . . . . . . . . . . . . . Device 2 | . . . . . . . . 4 . . 7 7 1 . . . . 4 4 5 3 1 7 . . 5 3 4 . Storage 17 | . 28 28 22 22 22 22 18 22 27 27 23 23 23 23 23 23 20 20 17 17 15 15 14 9 8 8 8 8 5 Hackware 25 | . . . . . . . . . . . 7 7 13 15 15 23 26 28 28 34 33 33 33 52 52 40 47 46 44 Protection 3 | . . . . 6 11 11 9 9 9 9 7 7 7 7 7 . . . . . 2 4 . . 2 1 1 . . Energy Gun 2 | . 9 . 13 . . . . 8 2 11 7 7 7 4 . . . 2 6 . . . . 1 . . . 2 2 Energy Cannon 3 | . . . 2 . . . 4 8 9 10 7 7 7 4 . . . 1 2 10 10 6 4 . . . . 5 5 Ballistic Gun 6 | . 17 16 3 22 22 22 18 . . . 7 7 2 5 16 19 11 9 . . . . . 1 1 5 8 3 . Launcher 1 | . . 11 10 8 . 10 4 8 9 2 . . . . . 1 . . . . . . . . . . . . . Special Weapon 1 | . . . . . . . . . . . . . . . . . 3 2 2 2 4 4 4 3 2 2 4 3 2 Slashing Weapon 2 | . . . 1 2 11 . . . 2 . . . 4 7 5 1 2 . 3 2 . 3 4 2 3 . 2 . . Naked Turns . | . . . . . . . . . . . . . . . . . . . . . . . . . . . . . . Heaviest Build 179 | 13 46 49 85 84 82 82 84 123 123 126 117 119 119 117 118 117 116 126 174 135 179 179 128 128 118 127 123 141 133 Greatest Support 150 | 32 20 20 40 40 40 40 60 60 60 60 40 90 98 98 98 92 64 80 80 76 98 98 75 75 150 150 131 131 112 Greatest Overweight (x) 37 | . 2 4 7 2 2 4 1 2 2 5 2 2 1 1 1 2 1 6 3 4 1 1 1 37 4 4 . 1 2 Average Overweight (x) 1 | . 1 2 2 2 1 1 1 1 1 1 2 1 1 1 1 1 1 1 1 1 1 1 1 1 . . . . . Largest Inventory Capacity 28 | 8 16 16 20 20 20 20 20 28 28 28 28 28 28 28 28 28 28 28 28 28 28 28 28 28 20 20 20 20 20 Average Capacity 23 | 6 14 16 19 20 20 20 20 23 28 28 28 28 28 28 28 28 28 28 28 28 28 28 28 19 20 20 20 20 15 Most Carried 28 | 7 15 16 20 19 20 20 20 28 28 28 27 28 28 28 28 28 28 28 28 28 28 28 25 28 20 20 19 20 20 Average Carried 22 | 4 12 13 17 18 19 19 18 22 27 27 26 27 27 27 27 27 26 25 26 26 27 23 23 17 19 17 18 19 14 Final Capacity 28 | 8 16 16 20 20 20 20 20 28 28 28 28 28 28 28 28 28 28 28 28 28 28 28 28 20 20 20 20 20 4 Final Carried 28 | 6 15 13 19 19 20 19 20 28 28 28 26 28 28 28 28 28 26 27 26 27 27 23 24 20 19 20 19 20 2 Class Distribution -------------------- 55% | Botlord-Mutant 22% | Hauler-Mutant 5% | Mutant 5% | Botlord-Skirmisher 4% | Hauler-Skirmisher Dominant Class ---------------- Mutant | -10/Materials Mutant | -10/Mines Hauler-Gunner | -9/Materials Hauler-Mutant | -9/Mines Hauler-Mutant | -9/Exiles Hauler-Mutant | -8/Mines Hauler-Mutant | -8/Materials Hauler-Mutant | -8/Garrison Hauler-Mutant | -8/Materials Hauler-Skirmisher | -8/Garrison Scavenger-Skirmisher | -7/Factory Scavenger-Skirmisher | -7/Waste Hauler-Mutant | -7/Factory Hauler-Mutant | -7/Garrison Hauler-Mutant | -7/Factory Botlord-Skirmisher | -7/Garrison Botlord-Mutant | -6/Factory Botlord-Mutant | -6/Garrison Botlord-Mutant | -5/Factory Botlord-Mutant | -5/Garrison Botlord-Mutant | -4/Factory Botlord-Mutant | -4/Garrison Botlord-Mutant | -3/Research Botlord-Mutant | -3/Garrison Botlord-Mutant | -2/Research Botlord-Mutant | -2/Garrison Botlord-Mutant | -1/Access Botlord-Mutant | -1/Garrison Botlord-Mutant | -1/Access Resources | -11 -10 -10 -9 -9 -9 -8 -8 -8 -8 -8 -7 -7 -7 -7 -7 -7 -6 -6 -5 -5 -4 -4 -3 -3 -2 -2 -1 -1 -1 ----------- Run | Scr Mat Min Mat Min Exi Min Mat Gar Mat Gar Fac Was Fac Gar Fac Gar Fac Gar Fac Gar Fac Gar Res Gar Res Gar Acc Gar Acc Matter Collected 8399 | 280 122 123 341 216 . 359 . 414 35 199 . 72 40 40 14 609 20 682 184 353 204 487 . 906 117 1628 215 457 282 Remotely . | . . . . . . . . . . . . . . . . . . . . . . . . . . . . . . Salvage Created 7311 | 152 231 156 936 99 . 426 . 743 52 334 . 199 . . 53 506 69 445 215 287 174 140 . 279 160 1037 . 231 387 Parts 375 | 10 21 10 70 5 . 23 . 40 4 25 . 3 . . 3 29 7 7 8 6 8 5 . 15 11 35 . 10 20 Haulers Intercepted 4 | . 2 . 1 . . . . . . . . . . . . . . . 1 . . . . . . . . . . Recyclers Shooed 3 | . . . . . . 2 . . . . . . . . 1 . . . . . . . . . . . . . . Parts Field Recycled . | . . . . . . . . . . . . . . . . . . . . . . . . . . . . . . Retrieved Matter . | . . . . . . . . . . . . . . . . . . . . . . . . . . . . . . Parts Self-Destructed . | . . . . . . . . . . . . . . . . . . . . . . . . . . . . . . Prevented . | . . . . . . . . . . . . . . . . . . . . . . . . . . . . . . Kills | -11 -10 -10 -9 -9 -9 -8 -8 -8 -8 -8 -7 -7 -7 -7 -7 -7 -6 -6 -5 -5 -4 -4 -3 -3 -2 -2 -1 -1 -1 ------- Run | Scr Mat Min Mat Min Exi Min Mat Gar Mat Gar Fac Was Fac Gar Fac Gar Fac Gar Fac Gar Fac Gar Res Gar Res Gar Acc Gar Acc Combat Hostiles Destroyed 177 | . 9 7 29 6 . 21 . 23 1 10 . . . . 1 19 1 7 3 6 3 2 . 6 1 14 . 2 6 Melee 2 | . . . 2 . . . . . . . . . . . . . . . . . . . . . . . . . . Guns 65 | . 9 3 7 4 . 4 . 3 . . . . . . 1 12 1 2 2 1 . . . 5 1 8 . 2 . Cannons 36 | . . . . . . . . 6 1 7 . . . . . . . 4 . 5 3 2 . 1 . 6 . . 1 AOE 74 | . . 4 20 2 . 17 . 14 . 3 . . . . . 7 . 1 1 . . . . . . . . . 5 Classes Destroyed 19 | 2 2 1 6 2 . . . . . . . . . . . 1 . . 1 . . . . . . 1 . . 3 Worker 6 | . . . 2 . . 1 . . . . . . . . . . . . 2 . . . . . 1 . . . . Builder 5 | . . . 5 . . . . . . . . . . . . . . . . . . . . . . . . . . Tunneler 5 | 3 . 1 . . . 1 . . . . . . . . . . . . . . . . . . . . . . . Hauler 4 | . 2 . 1 . . . . . . . . . . . . . . . 1 . . . . . . . . . . Recycler 4 | 1 . . 1 . . 2 . . . . . . . . . . . . . . . . . . . . . . . Operator 2 | . . . 2 . . . . . . . . . . . . . . . . . . . . . . . . . . Watcher 3 | . . . 2 . . . . . . . . . . . . . 1 . . . . . . . . . . . . Swarmer 65 | . 9 3 11 . . 15 . 4 . 3 . . . . . 12 . . 1 2 . . . 4 . 1 . . . Saboteur 1 | . . . . . . . . . . . . . . . . . . . . . . . . . . . . . 1 Grunt 63 | . . 4 12 2 . 5 . 13 . 4 . . . . . 6 . 5 . 4 . . . 1 . 7 . . . Brawler 10 | . . . 1 . . 1 . 2 . . . . . . . . . 2 . . . . . . . 3 . . 1 Protector 2 | . . . . . . . . . . . . . . . . . . . . . . . . . . . . . 2 Sentry 16 | . . . 5 . . . . 4 1 3 . . . . 1 . . . . . . 1 . . . . . 1 . Demolisher 1 | . . . . 1 . . . . . . . . . . . . . . . . . . . . . . . . . Hunter 6 | . . . . . . . . . . . . . . . . . . . 1 . 1 1 . . 2 . . . 1 Programmer 14 | . . . . . . . . . . . . . . . . 1 1 . 2 . 2 . . 2 . 4 . 1 1 Behemoth 2 | . . . . . . . . . . . . . . . . . . . . . . . . . . 1 . 1 . Investigator 1 | . . . . . . . . . . . . . . . . . . . . . . . . . . . . . 1 Assembled 3 | . . . . 3 . . . . . . . . . . . . . . . . . . . . . . . . . Best Kill Streak 14 | 2 3 3 14 3 . 10 . 9 1 3 . . . . 1 4 1 4 4 1 1 1 . 3 2 3 . 1 6 Combat Bots Only 10 | . 3 3 10 3 . 6 . 9 1 3 . . . . 1 4 1 4 1 1 1 1 . 3 1 3 . 1 5 Max Kills in Single Turn 4 | 1 1 2 4 2 . 4 . 3 1 3 . . . . 1 3 1 1 2 1 1 1 . 2 1 1 . 1 3 Gunslinging 2 | . . . . . . . . . . . . . . . . 2 . . . . . . . 1 . . . . . Exploded 4 | . . 2 3 2 . 4 . 3 . 3 . . . . . 3 . 1 1 . . . . . . . . . 3 Melee 1 | . . . 1 . . . . . . . . . . . . . . . . . . . . . . . . . . Uniques/NPCs Destroyed . | . . . . . . . . . . . . . . . . . . . . . . . . . . . . . . Combat | -11 -10 -10 -9 -9 -9 -8 -8 -8 -8 -8 -7 -7 -7 -7 -7 -7 -6 -6 -5 -5 -4 -4 -3 -3 -2 -2 -1 -1 -1 -------- Run | Scr Mat Min Mat Min Exi Min Mat Gar Mat Gar Fac Was Fac Gar Fac Gar Fac Gar Fac Gar Fac Gar Res Gar Res Gar Acc Gar Acc Damage Taken 21902 | . 391 160 1069 233 . 455 . 430 181 1128 . . . 69 167 1018 88 1617 131 632 517 2421 . 2895 552 3932 104 481 3231 Core 4213 | . 82 41 254 21 . 74 . 41 . 108 . . . 23 8 152 . 218 16 64 147 217 . 708 71 347 46 11 1564 Absorbed by Shields 829 | . . . . . . . . 84 . . . . . . . . . 5 . 53 29 159 . 80 . 321 29 69 . Reduced by Siege Mode 1050 | . . . . . . . . . . . . . . . . 24 . . . . . 54 . 186 . 777 . 9 . Core Remaining (%) 65 | 100 . 50 . . . 12 . . . 72 . . . . . 73 . 74 . 92 . 68 . 45 . 71 . . . Volleys Fired 797 | 11 43 33 52 11 . 21 . 48 5 25 . 5 . 2 5 40 8 63 31 38 21 62 . 61 22 112 9 36 33 Largest 4 | 1 2 2 3 3 . 3 . 3 1 3 . 2 . 1 3 3 3 3 3 2 2 2 . 3 1 3 1 4 3 Hottest 334 | 50 100 50 190 83 . 83 . 166 75 205 . 140 . 65 79 95 79 207 242 188 188 195 . 265 50 243 50 334 334 Shots Fired 1288 | 11 82 46 109 25 . 35 . 80 5 52 . 10 . 2 12 87 12 94 47 57 29 74 . 96 22 194 9 54 44 Gun 684 | 11 80 38 67 22 . 16 . 31 . 20 . 5 . 2 12 77 6 55 19 12 . 2 . 57 8 124 . 14 6 Cannon 281 | . . . 10 . . . . 31 5 30 . 5 . . . . . 19 11 32 16 38 . 14 . 44 . 15 11 Launcher 92 | . . 8 32 3 . 19 . 18 . 2 . . . . . 7 . . . . . . . . . . . . 3 Special 231 | . 2 . . . . . . . . . . . . . . 3 6 20 17 13 13 34 . 25 14 26 9 25 24 Kinetic 470 | . 45 38 6 22 . 16 . . . 1 . . . . 12 77 6 34 . . . 2 . 53 8 142 . 8 . Thermal 429 | 11 37 . 16 . . . . 62 5 44 . 10 . 2 . . . 33 29 44 16 38 . 18 . 26 . 21 17 Explosive 89 | . . 8 32 3 . 19 . 18 . 2 . . . . . 7 . . . . . . . . . . . . . Electromagnetic 71 | . . . 55 . . . . . . 5 . . . . . . . 7 1 . . . . . . . . . 3 Robot Hit Streak 67 | 5 6 12 8 5 . 3 . 8 13 8 . 11 . . 5 16 17 30 10 9 12 18 . 20 7 67 6 18 11 Robot Miss Streak 6 | 1 6 2 3 4 . 3 . 5 . 2 . 1 . . 2 5 2 2 2 3 2 3 . 4 3 3 1 2 3 Penetration Max 1 | . . . . . . . . . . . . . . . . 1 1 1 . . . . . . . 1 . . . Secondary Targets 4 | . 1 . . . . . . . . . . . . . . 2 . . . . . . . 1 . . . . . Max Gunslinging Chain 2 | . 1 . . . . . . . . . . . . . . 2 . . . . . . . 1 . . . . . Shots Hit Robots 885 | 9 37 27 68 13 . 16 . 33 5 34 . 8 . . 7 51 8 71 34 32 21 66 . 80 19 168 7 39 32 Core Hits 398 | 5 15 16 63 16 . 34 . 45 1 17 . 2 . . 3 30 4 21 11 9 4 7 . 18 4 38 . 7 28 Critical Hits 30 | . . . . . . 1 . 1 . . . . . . . 1 . . . 1 . 2 . 2 . 20 . 1 1 Critical Kills 11 | . . . . . . 1 . 1 . . . . . . . 1 . . . . . . . . . 7 . . 1 Critical Parts Destroyed 12 | . . . . . . . . . . . . . . . . . . . . 1 . 2 . 1 . 7 . 1 . Melee Attacks 143 | . . . 9 . . . . . . 2 . . 8 2 5 18 13 21 10 . 8 20 . 3 7 7 5 . 5 Impact . | . . . . . . . . . . . . . . . . . . . . . . . . . . . . . . Slashing 143 | . . . 9 . . . . . . 2 . . 8 2 5 18 13 21 10 . 8 20 . 3 7 7 5 . 5 Piercing . | . . . . . . . . . . . . . . . . . . . . . . . . . . . . . . Sneak Attacks 9 | . . . 3 . . . . . . . . . . . . . 1 . . . . 3 . . 2 . . . . Combat Hostiles 1 | . . . . . . . . . . . . . . . . . . . . . . 1 . . . . . . . Follow-up Attacks . | . . . . . . . . . . . . . . . . . . . . . . . . . . . . . . Damage Inflicted 26975 | 113 424 542 3215 489 . 1820 . 2400 125 944 . 171 . . 162 1789 294 1423 1606 655 346 1628 . 1686 387 4259 . 730 1767 Guns 9433 | 113 424 209 548 254 . 111 . 374 . 192 . 71 . . 162 861 161 805 350 131 . 19 . 1249 110 2697 . 438 154 Cannons 6720 | . . . 150 . . . . 400 125 554 . 100 . . . . . 548 284 524 346 1167 . 437 . 1562 . 292 231 Explosions 9433 | . . 333 2071 235 . 1709 . 1626 . 198 . . . . . 928 . 70 972 . . . . . . . . . 1291 Melee 1361 | . . . 446 . . . . . . . . . . . . . 133 . . . . 442 . . 277 . . . 63 Ramming 28 | . . . . . . . . . . . . . . . . . . . . . . . . . . . . . 28 Kinetic 7633 | . 175 209 37 254 . 111 . . . . . . . . 162 861 161 534 . . . 19 . 1288 110 3463 . 249 . Thermal 9211 | 113 249 39 302 . . . . 774 125 667 . 171 . . . . . 757 788 655 346 1167 . 398 . 796 . 481 1383 Explosive 7727 | . . 294 1946 235 . 1709 . 1626 . 198 . . . . . 928 . . 791 . . . . . . . . . . Electromagnetic 1015 | . . . 484 . . . . . . 79 . . . . . . . 132 27 . . . . . . . . . 293 Impact . | . . . . . . . . . . . . . . . . . . . . . . . . . . . . . . Slashing 1361 | . . . 446 . . . . . . . . . . . . . 133 . . . . 442 . . 277 . . . 63 Piercing . | . . . . . . . . . . . . . . . . . . . . . . . . . . . . . . Highest Corruption 22 | . . . . . . 2 . . . 8 . . . . . . 2 3 3 3 1 7 . 3 . 22 . . 2 Average Corruption 5 | . . . . . . 2 . . . 7 . . . . . . 1 2 3 3 1 4 . 2 . 15 . . 1 Corruption Purged . | . . . . . . . . . . . . . . . . . . . . . . . . . . . . . . Effects 324 | . . . . . . 11 . . . 29 . . . . . . 1 30 10 38 3 40 . 27 . 133 . . 2 Message Errors 87 | . . . . . . 7 . . . 9 . . . . . . . 8 3 11 . 9 . 7 . 32 . . 1 Matter Fused 61 | . . . . . . . . . . 7 . . . . . . . 6 2 11 . 9 . 5 . 21 . . . Heat Flow Errors 33 | . . . . . . 1 . . . 3 . . . . . . . 3 1 6 . 4 . 5 . 10 . . . Energy Discharges 38 | . . . . . . 3 . . . 1 . . . . . . 1 5 2 2 1 3 . 5 . 14 . . 1 Data Loss (minor) 33 | . . . . . . . . . . 2 . . . . . . . 6 1 5 . 5 . 3 . 11 . . . Data Loss (major) 7 | . . . . . . . . . . 1 . . . . . . . . . . . 1 . . . 5 . . . Misfires 8 | . . . . . . . . . . 3 . . . . . . . . . . . 3 . . . 2 . . . Alerts 3 | . . . . . . . . . . . . . . . . . . . . . . . . . . 3 . . . Misdirections 13 | . . . . . . . . . . . . . . . . . . . . . . . . . . 13 . . . Targeting Errors 34 | . . . . . . . . . . 3 . . . . . . . 2 1 2 2 6 . 1 . 17 . . . Weapon Failures 7 | . . . . . . . . . . . . . . . . . . . . 1 . . . 1 . 5 . . . Overload Shots . | . . . . . . . . . . . . . . . . . . . . . . . . . . . . . . Overflow Damage 772 | . . . 187 3 . 55 . 57 . 10 . . . . . 59 . 23 92 . 9 78 . 4 79 58 . . 58 Projectiles 116 | . . . . . . . . 12 . 10 . . . . . . . 23 . . 9 . . 4 . 58 . . . Explosions 332 | . . . 56 3 . 55 . 45 . . . . . . . 59 . . 92 . . . . . . . . . 22 Melee 324 | . . . 131 . . . . . . . . . . . . . . . . . . 78 . . 79 . . . 36 Knockbacks 4 | . . . . . . . . . . . . . . . . . . . . . . . . . . 4 . . . Impact . | . . . . . . . . . . . . . . . . . . . . . . . . . . . . . . Kinetic 4 | . . . . . . . . . . . . . . . . . . . . . . . . . . 4 . . . Secondary . | . . . . . . . . . . . . . . . . . . . . . . . . . . . . . . Self-Inflicted Damage 401 | . . . 179 15 . 7 . 49 . . . . . . . 51 . 19 . . . . . . . . . . 81 Shots 12 | . . . 4 1 . 1 . 2 . . . . . . . 2 . 1 . . . . . . . . . . 1 Rammed 1 | . . . . . . . . . . . . . . . . . . . . . . . . . . . . . 1 Targets Rammed 1 | . . . . . . . . . . . . . . . . . . . . . . . . . . . . . 1 Kicked . | . . . . . . . . . . . . . . . . . . . . . . . . . . . . . . Crushed . | . . . . . . . . . . . . . . . . . . . . . . . . . . . . . . Highest Temperature 597 | 50 130 29 374 99 . 250 . 248 150 597 . 360 . 20 9 57 . 262 586 326 396 423 . 233 42 379 22 329 521 Average Temperature 114 | 21 47 9 111 29 . 99 . 94 75 175 . 216 . 12 6 14 . 85 234 75 136 141 . 70 14 146 14 83 155 Received Heat Transfer 3647 | . . 72 324 48 . 72 . 178 81 207 . . . . 45 162 . 612 9 229 51 291 . 260 9 579 9 13 396 Effects 33 | . . . 2 . . . . . . 10 . . . . . . . . 8 . . 5 . . . 3 . . 5 Shutdowns 8 | . . . . . . . . . . 2 . . . . . . . . 4 . . 1 . . . . . . 1 Energy Bleed 6 | . . . 2 . . . . . . 1 . . . . . . . . 1 . . 1 . . . 1 . . . Interference 9 | . . . . . . . . . . . . . . . . . . . . . . 3 . . . 2 . . 4 Short Circuit 5 | . . . . . . . . . . 3 . . . . . . . . 2 . . . . . . . . . . Damage (minor) 1 | . . . . . . . . . . . . . . . . . . . 1 . . . . . . . . . . Damage (major) 4 | . . . . . . . . . . 4 . . . . . . . . . . . . . . . . . . . Siege Activations 23 | . . . . . . . . . . . . 1 . . . 4 . . . . 2 2 . 2 2 7 1 2 . Total Turns 596 | . . . . . . . . . . . . 1 . . . 63 . . . . 36 56 . 52 33 331 7 17 . Longest Duration 92 | . . . . . . . . . . . . 1 . . . 35 . . . . 20 36 . 49 22 92 7 11 . Robots Corrupted . | . . . . . . . . . . . . . . . . . . . . . . . . . . . . . . Combat Hostiles . | . . . . . . . . . . . . . . . . . . . . . . . . . . . . . . Parts Fried 2 | . . . 2 . . . . . . . . . . . . . . . . . . . . . . . . . . Impact Corruptions 1 | . . . . . . . . . . . . . . . . . . . . . . . . . . . . . 1 Robots Melted . | . . . . . . . . . . . . . . . . . . . . . . . . . . . . . . Combat Hostiles . | . . . . . . . . . . . . . . . . . . . . . . . . . . . . . . Parts Melted 11 | . 1 . 2 . . . . . . 1 . . . . . . . . 2 2 . . . 1 . . . . 2 Heat Transferred 12642 | 333 740 50 483 . . . . 1332 185 1107 . 333 . . . . . 1517 1044 807 297 1471 . 631 . 925 . 442 945 Parts Sabotaged 4 | . . . . . . . . . . . . . . . . . . . . . . . . . . . . . 4 Parts Stolen . | . . . . . . . . . . . . . . . . . . . . . . . . . . . . . . Parts Stripped . | . . . . . . . . . . . . . . . . . . . . . . . . . . . . . . Power Chain Reactions 5 | . . . 2 . . . . . . . . . . . . . . 1 . . . . . . . . . . 2 Missiles Intercepted . | . . . . . . . . . . . . . . . . . . . . . . . . . . . . . . Alert | -11 -10 -10 -9 -9 -9 -8 -8 -8 -8 -8 -7 -7 -7 -7 -7 -7 -6 -6 -5 -5 -4 -4 -3 -3 -2 -2 -1 -1 -1 ------- Run | Scr Mat Min Mat Min Exi Min Mat Gar Mat Gar Fac Was Fac Gar Fac Gar Fac Gar Fac Gar Fac Gar Res Gar Res Gar Acc Gar Acc Peak Influence 1936 | 20 286 265 685 380 . 479 165 1018 530 564 296 103 284 1353 1044 1149 647 373 320 281 187 287 161 195 128 217 169 369 1936 Average Influence 331 | 9 110 121 327 328 . 225 165 704 506 481 296 99 116 1046 847 1012 487 218 220 164 62 101 161 72 65 105 115 188 1680 Maximum Alert Level 5 | . 1 1 2 1 . 2 . 3 2 2 1 . 1 4 3 4 2 1 1 1 . 1 . . . 1 . 1 5 Low Security (%) 53 | 100 80 85 25 10 . 42 100 6 . . . 100 74 5 . . 11 39 38 50 100 81 100 100 100 94 100 52 . Level 1 20 | . 19 14 53 89 . 32 . 9 . 20 100 . 25 . . . 16 60 61 50 . 18 . . . 5 . 47 . Level 2 9 | . . . 21 . . 25 . 25 100 79 . . . . . . 72 . . . . . . . . . . . . Level 3 12 | . . . . . . . . 58 . . . . . 55 100 80 . . . . . . . . . . . . . Level 4 2 | . . . . . . . . . . . . . . 38 . 19 . . . . . . . . . . . . . Level 5 . | . . . . . . . . . . . . . . . . . . . . . . . . . . . . . . High Security . | . . . . . . . . . . . . . . . . . . . . . . . . . . . . . . Max Security 1 | . . . . . . . . . . . . . . . . . . . . . . . . . . . . . 99 Squads Dispatched 57 | . 1 . 4 . . . . . . . . . 4 . 4 . 3 . 3 . 6 . . . 3 . 5 . 24 Investigation 8 | . . . 3 . . . . . . . . . 1 . 2 . 1 . . . . . . . . . 1 . . Extermination 8 | . . . . . . . . . . . . . . . . . 1 . 2 . 4 . . . 1 . . . . Reinforcement 10 | . 1 . 1 . . . . . . . . . 1 . 2 . 1 . 1 . 1 . . . 1 . . . 1 Assault 20 | . . . . . . . . . . . . . . . . . . . . . . . . . . . . . 20 Garrison 11 | . . . . . . . . . . . . . 2 . . . . . . . 1 . . . 1 . 4 . 3 Intercept . | . . . . . . . . . . . . . . . . . . . . . . . . . . . . . . Construction Impeded 5 | . . . . . . . . . . . . . 1 . 2 . . . . . 1 . . . . . . . 1 Haulers Reinforced 2 | . . . . . . . . . . . . . . . . . 1 . 1 . . . . . . . . . . Alert ID Control Effect 121 | . . . . . . . . . . . . . . . . 5 . 5 8 12 10 4 . 7 11 11 18 12 18 Stealth | -11 -10 -10 -9 -9 -9 -8 -8 -8 -8 -8 -7 -7 -7 -7 -7 -7 -6 -6 -5 -5 -4 -4 -3 -3 -2 -2 -1 -1 -1 --------- Run | Scr Mat Min Mat Min Exi Min Mat Gar Mat Gar Fac Was Fac Gar Fac Gar Fac Gar Fac Gar Fac Gar Res Gar Res Gar Acc Gar Acc Distress Signals 21 | . 1 . 2 . . . . . 1 . . . . . 4 . 1 . 1 . 1 . . . . . 2 . 8 Communications Jammed . | . . . . . . . . . . . . . . . . . . . . . . . . . . . . . . Distress Signals . | . . . . . . . . . . . . . . . . . . . . . . . . . . . . . . Times Spotted 559 | . 16 6 37 14 . 18 . 33 4 11 . . 1 5 14 20 7 29 18 24 17 31 . 25 21 39 20 31 118 Peak Tracking Total 51 | . 4 3 9 11 . 4 . 6 3 5 . . 2 3 6 9 3 6 5 6 4 5 . 6 5 6 6 5 51 Tactical Retreats 51 | . 1 . 3 2 . 2 . 14 . 3 . . . . 1 3 . 7 . . . 1 . 2 . 5 1 . 6 Traps | -11 -10 -10 -9 -9 -9 -8 -8 -8 -8 -8 -7 -7 -7 -7 -7 -7 -6 -6 -5 -5 -4 -4 -3 -3 -2 -2 -1 -1 -1 ------- Run | Scr Mat Min Mat Min Exi Min Mat Gar Mat Gar Fac Was Fac Gar Fac Gar Fac Gar Fac Gar Fac Gar Res Gar Res Gar Acc Gar Acc Traps Triggered 57 | . . . 2 . . . . 10 . 1 1 . . 5 2 2 . 6 1 12 3 3 . 5 . 1 . 3 . Indirectly . | . . . . . . . . . . . . . . . . . . . . . . . . . . . . . . Trap Hack Attempts . | . . . . . . . . . . . . . . . . . . . . . . . . . . . . . . Triggered . | . . . . . . . . . . . . . . . . . . . . . . . . . . . . . . Disarmed . | . . . . . . . . . . . . . . . . . . . . . . . . . . . . . . Reprogrammed . | . . . . . . . . . . . . . . . . . . . . . . . . . . . . . . Reused . | . . . . . . . . . . . . . . . . . . . . . . . . . . . . . . Traps Extracted . | . . . . . . . . . . . . . . . . . . . . . . . . . . . . . . Installed . | . . . . . . . . . . . . . . . . . . . . . . . . . . . . . . Triggered . | . . . . . . . . . . . . . . . . . . . . . . . . . . . . . . Exploded 2 | . . . . . . . . 2 . . . . . . . . . . . . . . . . . . . . . Machines | -11 -10 -10 -9 -9 -9 -8 -8 -8 -8 -8 -7 -7 -7 -7 -7 -7 -6 -6 -5 -5 -4 -4 -3 -3 -2 -2 -1 -1 -1 ---------- Run | Scr Mat Min Mat Min Exi Min Mat Gar Mat Gar Fac Was Fac Gar Fac Gar Fac Gar Fac Gar Fac Gar Res Gar Res Gar Acc Gar Acc Machines Disabled 75 | . . 5 8 . . 6 . 7 . 1 . . . 4 6 1 . 4 7 5 . 5 . 4 1 4 . 3 4 Max in Single Turn 6 | . . 5 1 . . 6 . 1 . 1 . . . 1 . 1 . 1 3 1 . 1 . 1 . 1 . 1 1 Garrison Relay 32 | . . . . . . . . 4 . . . . . 3 . 1 . 4 . 4 . 4 . 4 . 4 . 4 . Phase Generator 1 | . . . . . . . . . . . . . . . . . . . . . . . . . . 1 . . . Energy Cycler 1 | . . . . . . . . . . . . . . . . . . . . . . . . . . . . . 1 Machines Sabotaged . | . . . . . . . . . . . . . . . . . . . . . . . . . . . . . . Garrisons Compromised . | . . . . . . . . . . . . . . . . . . . . . . . . . . . . . . Overloaded Fab Kills . | . . . . . . . . . . . . . . . . . . . . . . . . . . . . . . Fab Network Shutdowns . | . . . . . . . . . . . . . . . . . . . . . . . . . . . . . . Hacking | -11 -10 -10 -9 -9 -9 -8 -8 -8 -8 -8 -7 -7 -7 -7 -7 -7 -6 -6 -5 -5 -4 -4 -3 -3 -2 -2 -1 -1 -1 --------- Run | Scr Mat Min Mat Min Exi Min Mat Gar Mat Gar Fac Was Fac Gar Fac Gar Fac Gar Fac Gar Fac Gar Res Gar Res Gar Acc Gar Acc Machines Accessed 44 | . 2 . 3 . 1 . 1 . 1 . . . 3 . 9 . 6 . 4 . 5 . 1 . 5 . 3 . . Terminals 24 | . 2 . 2 . . . . . . . . . 2 . 6 . 4 . 2 . 2 . . . 2 . 2 . . Fabricators 3 | . . . . . . . . . . . . . . . 1 . . . 1 . . . . . 1 . . . . Repair Stations 3 | . . . . . . . . . . . . . . . . . 1 . . . 1 . . . 1 . . . . Recycling Units . | . . . . . . . . . . . . . . . . . . . . . . . . . . . . . . Scanalyzers 3 | . . . 1 . . . . . . . . . . . 1 . . . . . 1 . . . . . . . . Garrison Access 10 | . . . . . . . 1 . 1 . . . 1 . 1 . 1 . 1 . 1 . 1 . 1 . 1 . . Total Hacks 110 | . 9 . 14 . 1 . 1 . 1 . . . 7 . 19 . 20 . 11 . 10 . 1 . 10 . 6 . . Successful 75 | . 6 . 9 . 1 . 1 . 1 . . . 3 . 13 . 18 . 5 . 7 . 1 . 7 . 3 . . Failed 35 | . 3 . 5 . . . . . . . . . 4 . 6 . 2 . 6 . 3 . . . 3 . 3 . . Catastrophic 7 | . . . 1 . . . . . . . . . 1 . . . 1 . 1 . 1 . . . 1 . 1 . . Database Lockouts . | . . . . . . . . . . . . . . . . . . . . . . . . . . . . . . Manual 71 | . 9 . 7 . 1 . . . . . . . 6 . 12 . 16 . 8 . 5 . . . 3 . 4 . . Terminals 73 | . 9 . 7 . . . . . . . . . 6 . 13 . 16 . 8 . 5 . . . 4 . 5 . . Fabricators 7 | . . . . . . . . . . . . . . . 3 . . . 2 . . . . . 2 . . . . Repair Stations 8 | . . . . . . . . . . . . . . . . . 3 . . . 2 . . . 3 . . . . Recycling Units . | . . . . . . . . . . . . . . . . . . . . . . . . . . . . . . Scanalyzers 11 | . . . 7 . . . . . . . . . . . 2 . . . . . 2 . . . . . . . . Garrison Access 10 | . . . . . . . 1 . 1 . . . 1 . 1 . 1 . 1 . 1 . 1 . 1 . 1 . . Terminal Hacks 17 | . . . 1 . 1 . . . . . . . 1 . 5 . 7 . . . . . . . 1 . 1 . . Record 1 | . . . . . . . . . . . . . . . 1 . . . . . . . . . . . . . . Part Schematic 3 | . . . . . . . . . . . . . . . 1 . 1 . . . . . . . 1 . . . . Branch Access Points 2 | . . . . . . . . . . . . . . . 1 . 1 . . . . . . . . . . . . Terminal Index 4 | . . . . . . . . . . . . . 1 . 1 . 1 . . . . . . . . . 1 . . Fabricator Index 2 | . . . . . . . . . . . . . . . 1 . 1 . . . . . . . . . . . . Unreport Threat 2 | . . . . . . . . . . . . . . . . . 2 . . . . . . . . . . . . Recall Investigation 1 | . . . 1 . . . . . . . . . . . . . . . . . . . . . . . . . . Zone Layout 1 | . . . . . . . . . . . . . . . . . 1 . . . . . . . . . . . . EX-Prototype ID Bank 1 | . . . . . 1 . . . . . . . . . . . . . . . . . . . . . . . . Fabricator Hacks 5 | . . . . . . . . . . . . . . . 2 . . . 1 . . . . . 2 . . . . Load Schematic 3 | . . . . . . . . . . . . . . . 1 . . . 1 . . . . . 1 . . . . Build 2 | . . . . . . . . . . . . . . . 1 . . . . . . . . . 1 . . . . Repair Station Hacks 7 | . . . . . . . . . . . . . . . . . 3 . . . 2 . . . 2 . . . . Scan Component 4 | . . . . . . . . . . . . . . . . . 2 . . . 1 . . . 1 . . . . Repair 3 | . . . . . . . . . . . . . . . . . 1 . . . 1 . . . 1 . . . . Recycling Unit Hacks . | . . . . . . . . . . . . . . . . . . . . . . . . . . . . . . Scanalyzer 10 | . . . 6 . . . . . . . . . . . 2 . . . . . 2 . . . . . . . . Insert Component 5 | . . . 3 . . . . . . . . . . . 1 . . . . . 1 . . . . . . . . Analyze 5 | . . . 3 . . . . . . . . . . . 1 . . . . . 1 . . . . . . . . Garrison Access Hacks 10 | . . . . . . . 1 . 1 . . . 1 . 1 . 1 . 1 . 1 . 1 . 1 . 1 . . Unlock Access 10 | . . . . . . . 1 . 1 . . . 1 . 1 . 1 . 1 . 1 . 1 . 1 . 1 . . Unauthorized Hacks 59 | . 15 . 6 . . . . . . . . . 2 . 7 . 14 . 6 . 5 . . . 2 . 2 . . Terminals 26 | . 6 . 2 . . . . . . . . . 1 . 3 . 7 . 3 . 2 . . . 1 . 1 . . Track 4 | . 1 . 1 . . . . . . . . . . . . . 2 . . . . . . . . . . . . Assimilate 2 | . 2 . . . . . . . . . . . . . . . . . . . . . . . . . . . . Botnet 17 | . 2 . 1 . . . . . . . . . 1 . 3 . 4 . 2 . 2 . . . 1 . 1 . . Disrupt 2 | . 1 . . . . . . . . . . . . . . . . . 1 . . . . . . . . . . Operators 1 | . . . . . . . . . . . . . . . . . 1 . . . . . . . . . . . . Fabricators . | . . . . . . . . . . . . . . . . . . . . . . . . . . . . . . Repair Stations . | . . . . . . . . . . . . . . . . . . . . . . . . . . . . . . Recycling Units . | . . . . . . . . . . . . . . . . . . . . . . . . . . . . . . Scanalyzers . | . . . . . . . . . . . . . . . . . . . . . . . . . . . . . . Garrison Access . | . . . . . . . . . . . . . . . . . . . . . . . . . . . . . . Data Cores Recovered . | . . . . . . . . . . . . . . . . . . . . . . . . . . . . . . Used . | . . . . . . . . . . . . . . . . . . . . . . . . . . . . . . Hacking Detections 31 | . 2 . 3 . . . . . . . . . 2 . 7 . 3 . 4 . 3 . . . 4 . 3 . . Full Trace Events 5 | . . . 1 . . . . . . . . . 1 . 1 . 1 . . . . . . . . . 1 . . Feedback Events 1 | . . . . . . . . . . . . . . . . . 1 . . . . . . . . . . . . Corruption 1 | . . . . . . . . . . . . . . . . . 1 . . . . . . . . . . . . Feedback Blocked . | . . . . . . . . . . . . . . . . . . . . . . . . . . . . . . Robot Schematics Acquired . | . . . . . . . . . . . . . . . . . . . . . . . . . . . . . . Robots Built . | . . . . . . . . . . . . . . . . . . . . . . . . . . . . . . Matter . | . . . . . . . . . . . . . . . . . . . . . . . . . . . . . . Time . | . . . . . . . . . . . . . . . . . . . . . . . . . . . . . . Total Robot Build Rating . | . . . . . . . . . . . . . . . . . . . . . . . . . . . . . . Part Schematics Acquired 8 | . . . 3 . . . . . . . . . . . 2 . 1 . . . 1 . . . 1 . . . . Parts Built 3 | . . . . . . . . . . . . . . . 1 . . . . . . . . . 2 . . . . Matter 248 | . . . . . . . . . . . . . . . 102 . . . . . . . . . 146 . . . . Time 98 | . . . . . . . . . . . . . . . 25 . . . . . . . . . 73 . . . . Total Part Build Rating 7 | . . . . . . . . . . . . . . . 1 . . . . . . . . . 6 . . . . Parts Repaired 3 | . . . . . . . . . . . . . . . . . 1 . . . 1 . . . 1 . . . . Time 80 | . . . . . . . . . . . . . . . . . 22 . . . 30 . . . 28 . . . . Parts Recycled . | . . . . . . . . . . . . . . . . . . . . . . . . . . . . . . Recycled Matter . | . . . . . . . . . . . . . . . . . . . . . . . . . . . . . . Retrieved Matter . | . . . . . . . . . . . . . . . . . . . . . . . . . . . . . . Retrieved Components . | . . . . . . . . . . . . . . . . . . . . . . . . . . . . . . Parts Scanalyzed 5 | . . . 3 . . . . . . . . . . . 1 . . . . . 1 . . . . . . . . Part Schematics Acquired 5 | . . . 3 . . . . . . . . . . . 1 . . . . . 1 . . . . . . . . Parts Damaged 2 | . . . . . . . . . . . . . . . 1 . . . . . 1 . . . . . . . . Bothacking | -11 -10 -10 -9 -9 -9 -8 -8 -8 -8 -8 -7 -7 -7 -7 -7 -7 -6 -6 -5 -5 -4 -4 -3 -3 -2 -2 -1 -1 -1 ------------ Run | Scr Mat Min Mat Min Exi Min Mat Gar Mat Gar Fac Was Fac Gar Fac Gar Fac Gar Fac Gar Fac Gar Res Gar Res Gar Acc Gar Acc Used RIF Installer 10 | . . . . . . . . 1 . 1 . . . 1 . 1 . 1 . 1 . 1 . 1 . 1 . 1 . Coupler Efficiency 2 | . . . . . . . . . . . . . . . . . . . . . . . . 1 . . . 1 . Alert ID Control 1 | . . . . . . . . . . 1 . . . . . . . . . . . . . . . . . . . Structural Interface 1 | . . . . . . . . . . . . . . . . . . . . 1 . . . . . . . . . Program Shield 1 | . . . . . . . . . . . . . . 1 . . . . . . . . . . . . . . . Autooverride 2 | . . . . . . . . . . . . . . . . . . . . . . 1 . . . 1 . . . Autoassimilate 2 | . . . . . . . . . . . . . . . . 1 . 1 . . . . . . . . . . . Robots Hacked 187 | . . . . . . . . . . . . . . . . 2 2 9 8 13 8 24 . 22 8 24 11 24 32 Non-combat 6 | . . . . . . . . . . . . . . . . . 2 . . . 1 . . . 2 . 1 . . Combat 181 | . . . . . . . . . . . . . . . . 2 . 9 8 13 7 24 . 22 6 24 10 24 32 Autooverrided 37 | . . . . . . . . . . . . . . . . . . . . . . 3 . 3 . 3 2 12 14 Autoassimilated 47 | . . . . . . . . . . . . . . . . . . 1 2 7 1 5 . 7 1 4 4 4 11 Robot Hacks Applied 116 | . . . . . . . . . . . . . . . . 2 2 9 6 7 9 21 . 12 10 17 5 9 7 parse_system 3 | . . . . . . . . . . . . . . . . . . . 1 . 1 1 . . . . . . . map_route 7 | . . . . . . . . . . . . . . . . . 2 . . . . . . . 4 . 1 . . find_garrison 2 | . . . . . . . . . . . . . . . . . . . . . 1 . . . 1 . . . . scatter_targeting 2 | . . . . . . . . . . . . . . . . . . 1 . . 1 . . . . . . . . disrupt_area 1 | . . . . . . . . . . . . . . . . . . . . . . . . . . 1 . . . disable_weapons 7 | . . . . . . . . . . . . . . . . 1 . 1 . . . 2 . . . 1 1 1 . go_dormant 1 | . . . . . . . . . . . . . . . . . . . . . . 1 . . . . . . . streamctrl_high 22 | . . . . . . . . . . . . . . . . . . 1 . 3 . 5 . 1 2 5 2 1 2 formatsys_high 71 | . . . . . . . . . . . . . . . . 1 . 6 5 4 6 12 . 11 3 10 1 7 5 Relay Couplers Released 131 | . . . . . . . . 18 . . . . . 12 . 5 . 16 . 15 . 16 . 18 . 16 . 15 . Machine Destruction 131 | . . . . . . . . 18 . . . . . 12 . 5 . 16 . 15 . 16 . 18 . 16 . 15 . Attached 73 | . . . . . . . . . . . . . . . . 2 1 6 3 6 4 14 . 12 2 11 3 5 4 Robots Rewired 7 | . . . . . . . . . . . . . . . . . 1 . . . . . . . . . . 6 . Allies Hacked 1 | . . . . . . . . . . . . . . . . . . . . . 1 . . . . . . . . Hacks Repelled . | . . . . . . . . . . . . . . . . . . . . . . . . . . . . . . Allies | -11 -10 -10 -9 -9 -9 -8 -8 -8 -8 -8 -7 -7 -7 -7 -7 -7 -6 -6 -5 -5 -4 -4 -3 -3 -2 -2 -1 -1 -1 -------- Run | Scr Mat Min Mat Min Exi Min Mat Gar Mat Gar Fac Was Fac Gar Fac Gar Fac Gar Fac Gar Fac Gar Res Gar Res Gar Acc Gar Acc Total Allies 205 | . 2 . . 3 . . . . . . . 20 . . . 1 1 8 7 13 7 23 . 22 6 22 9 29 32 Largest Group 21 | . 1 1 . 3 . . . . . . . 20 19 14 7 1 1 4 4 5 6 9 9 10 9 5 8 21 18 Highest-Rated Group 1214 | . 10 10 . 40 . . . . . . . 571 540 419 216 32 29 146 122 136 234 217 217 468 444 266 451 1214 972 Highest-Rated Ally 222 | . 10 10 . 16 . . . . . . . 35 35 35 35 32 29 47 49 49 56 56 49 64 69 69 69 222 69 Total Orders 104 | . . . . 1 . . . . . . . . . . . 2 2 10 3 7 6 12 . 17 8 6 4 17 9 STAY 26 | . . . . . . . . . . . . . . . . . . 2 1 2 3 2 . 5 1 2 1 7 . GOTO 40 | . . . . 1 . . . . . . . . . . . 1 1 6 1 1 . 7 . 7 5 2 1 4 3 FOLLOW 34 | . . . . . . . . . . . . . . . . 1 1 2 1 4 3 3 . 5 2 2 2 6 2 EXPLORE 4 | . . . . . . . . . . . . . . . . . . . . . . . . . . . . . 4 Ally Attacks 1149 | . . . . 19 . . . . . . . . 21 84 47 17 2 58 42 89 53 49 . 63 83 103 124 110 185 Total Damage 37012 | . . . . 236 . . . . . . . . 463 3140 1347 738 20 1393 661 1646 1571 1286 . 1695 2756 2984 4592 4134 8350 Kills 217 | . . . . 4 . . . . . . . . 7 29 13 5 . 8 8 13 13 9 . 9 11 11 20 19 38 Allies Corrupted 14 | . . . . . . . . . . . . . . 1 . . . . . . 2 . . . 2 4 . . 5 Allies Melted 1 | . . . . . . . . . . . . . . . . . . . . 1 . . . . . . . . . Intel | -11 -10 -10 -9 -9 -9 -8 -8 -8 -8 -8 -7 -7 -7 -7 -7 -7 -6 -6 -5 -5 -4 -4 -3 -3 -2 -2 -1 -1 -1 ------- Run | Scr Mat Min Mat Min Exi Min Mat Gar Mat Gar Fac Was Fac Gar Fac Gar Fac Gar Fac Gar Fac Gar Res Gar Res Gar Acc Gar Acc Robot Analysis Total . | . . . . . . . . . . . . . . . . . . . . . . . . . . . . . . Derelict Logs Recovered 3 | . . 2 . 1 . . . . . . . . . . . . . . . . . . . . . . . . . Drone Launches 4 | . . . . . . . . . . . . . . . . . . . . . . . . . . . . . 4 Drone Recoveries . | . . . . . . . . . . . . . . . . . . . . . . . . . . . . . . Exploration | -11 -10 -10 -9 -9 -9 -8 -8 -8 -8 -8 -7 -7 -7 -7 -7 -7 -6 -6 -5 -5 -4 -4 -3 -3 -2 -2 -1 -1 -1 ------------- Run | Scr Mat Min Mat Min Exi Min Mat Gar Mat Gar Fac Was Fac Gar Fac Gar Fac Gar Fac Gar Fac Gar Res Gar Res Gar Acc Gar Acc Turns Passed 28714 | 151 554 618 745 445 575 1487 125 1642 253 1128 72 413 238 1308 647 1538 643 1687 843 1866 1356 1892 84 2119 992 2822 492 1554 425 Spaces Moved 13117 | 117 389 500 352 198 314 683 67 715 119 370 36 196 114 668 317 716 320 729 306 805 565 800 45 919 470 969 251 751 316 Core 379 | 4 . . . . . . . . . . . . . . . . . . . . . . . 181 . . . . 194 Treads 11372 | . . . 146 198 314 683 67 715 119 370 36 196 114 668 317 716 320 729 306 805 565 800 45 738 470 811 251 751 122 Legs 158 | . . . . . . . . . . . . . . . . . . . . . . . . . . 158 . . . Wheels 1208 | 113 389 500 206 . . . . . . . . . . . . . . . . . . . . . . . . . . Hover . | . . . . . . . . . . . . . . . . . . . . . . . . . . . . . . Flight . | . . . . . . . . . . . . . . . . . . . . . . . . . . . . . . Fastest Speed 50 | 50 80 100 100 200 180 180 180 180 180 183 200 180 180 180 172 170 170 170 180 180 180 180 180 50 162 162 166 166 50 Average Speed 172 | 88 95 107 146 200 181 199 180 190 192 197 200 192 180 180 178 173 170 174 191 182 180 180 180 183 170 179 166 175 100 Slowest Speed 1900 | 100 100 120 220 200 200 240 180 200 200 260 200 200 180 180 180 185 170 280 220 240 180 180 180 1900 240 230 166 180 200 Overloaded Moves . | . . . . . . . . . . . . . . . . . . . . . . . . . . . . . . Propulsion Burnouts . | . . . . . . . . . . . . . . . . . . . . . . . . . . . . . . Robots Hopped . | . . . . . . . . . . . . . . . . . . . . . . . . . . . . . . Cave-ins Triggered 5 | . . . . . . 1 . . . 2 . . . . . . . 1 . . . 1 . . . . . . . Exploration Rate (%) 48 | 6 57 96 45 33 70 99 6 85 10 41 2 84 4 84 15 68 13 85 10 97 16 97 1 99 15 95 9 98 15 Regions Visited 29 Branch Regions 4 Pre-discovered Areas 3 | . . 2 . 1 . . . . . . . . . . . . . . . . . . . . . . . . . Known Exits Taken 10 | . . . . . . . 1 . 1 . . . 1 . 1 . 1 . 1 . 1 . 1 . 1 . 1 . . Unknown Exits Taken 7 | 1 1 1 1 1 1 1 . . . . . . . . . . . . . . . . . . . . . . . Scrap Searched 3 | . . 2 . . . 1 . . . . . . . . . . . . . . . . . . . . . . . Spaces Dug 93 | . 2 20 . . . . . . . . . . 8 . 5 3 10 8 5 . 8 5 . . 4 4 5 . 6 Terrain Destroyed 824 | . 2 63 222 25 . 166 . 107 . 16 . . 8 . 5 45 10 12 70 5 14 9 . 1 4 9 5 3 23 Melee 67 | . . . . . . . . . . . . . 8 . 5 3 10 8 5 . 8 5 . . 4 3 5 . 3 Projectile 41 | . 2 . 3 . . 2 . 1 . 1 . . . . . 4 . . 1 5 6 4 . 1 . 6 . 3 2 AOE 716 | . . 63 219 25 . 164 . 106 . 15 . . . . . 38 . 4 64 . . . . . . . . . 18 Actions | -11 -10 -10 -9 -9 -9 -8 -8 -8 -8 -8 -7 -7 -7 -7 -7 -7 -6 -6 -5 -5 -4 -4 -3 -3 -2 -2 -1 -1 -1 --------- Run | Scr Mat Min Mat Min Exi Min Mat Gar Mat Gar Fac Was Fac Gar Fac Gar Fac Gar Fac Gar Fac Gar Res Gar Res Gar Acc Gar Acc Total 18008 | 153 493 543 478 229 321 780 72 920 142 723 38 226 134 774 384 913 390 1032 516 1152 873 1173 48 1289 641 1890 317 963 401 Wait 2946 | . 34 2 17 16 . 72 . 101 2 284 . 11 8 63 32 108 42 135 142 246 241 236 1 182 108 682 40 121 20 Move 13078 | 116 388 499 351 197 313 682 66 713 118 368 36 195 113 666 316 714 319 727 305 803 564 797 44 917 469 967 250 749 316 Hop . | . . . . . . . . . . . . . . . . . . . . . . . . . . . . . . Pick Up 362 | 15 16 3 23 2 4 1 3 18 7 15 . 6 1 11 8 10 1 27 8 19 14 18 2 45 12 49 3 16 5 Fast Attach . | . . . . . . . . . . . . . . . . . . . . . . . . . . . . . . Attach 161 | 6 3 3 7 2 . 1 1 1 1 6 2 1 . 2 . 4 3 13 5 6 8 20 1 24 5 18 3 6 9 Detach 4 | . . . . . . . . . . . . . . . . . . 2 1 1 . . . . . . . . . Swap 186 | 2 5 1 9 1 1 2 1 10 3 11 . 1 3 2 4 9 4 21 8 6 7 9 . 14 7 24 6 12 3 Drop 191 | 3 4 2 10 . 3 1 1 9 6 10 . 7 1 11 8 6 . 11 6 9 10 4 . 17 11 24 1 7 9 Fire 797 | 11 43 33 52 11 . 21 . 48 5 25 . 5 . 2 5 40 8 63 31 38 21 62 . 61 22 112 9 36 33 Melee 143 | . . . 9 . . . . . . 2 . . 8 2 5 18 13 21 10 . 8 20 . 3 7 7 5 . 5 Ram . | . . . . . . . . . . . . . . . . . . . . . . . . . . . . . . Kick . | . . . . . . . . . . . . . . . . . . . . . . . . . . . . . . Crush 1 | . . . . . . . . . . . . . . . . . . . . . . . . . . . . . 1 Escape Stasis 121 | . . . . . . . . 20 . 2 . . . 15 6 4 . 12 . 24 . 7 . 23 . 2 . 6 . Rewire 18 | . . . . . . . . . . . . . . . . . . . . . . . . 3 . 5 . 10 . Trap . | . . . . . . . . . . . . . . . . . . . . . . . . . . . . . . Miscellaneous . | . . . . . . . . . . . . . . . . . . . . . . . . . . . . . . Route ------- -11/Scrapyard -10/Materials (discovered 2 exits: *Mat / [*Min]) -10/Mines (discovered 2 exits: *Mat x2) -9/Materials -9/Mines (discovered 2 exits: *Mat / *Exi) -9/Exiles -8/Mines (discovered 2 exits: *Mat x2) -8/Materials -8/Garrison (discovered 3 exits: *Mat x3) -8/Materials -8/Garrison -7/Factory -7/Waste -7/Factory -7/Garrison (discovered 3 exits: *Fac x3) -7/Factory (discovered 4 exits: *Fac / Low x2 / Gar) -7/Garrison (discovered 2 exits: *Fac x2) -6/Factory (discovered 3 exits: Low x2 / Gar) -6/Garrison (discovered 3 exits: *Fac x3) -5/Factory -5/Garrison (discovered 3 exits: *Fac x3) -4/Factory -4/Garrison (discovered 3 exits: *Res x3) -3/Research (discovered 2 exits: [*Tes] / Gar) -3/Garrison (discovered 3 exits: *Res x3) -2/Research -2/Garrison (discovered 2 exits: *Acc x2) -1/Access -1/Garrison (discovered 3 exits: [*Acc x3]) -1/Access History --------- Turn | Location | Event 6 | -11/Scrapyard | Discovered new exit (range 15) 152 | -11/Scrapyard | Entered Materials 304 | -10/Materials | Build established: Mutant 455 | -10/Materials | Discovered new exit (range 16) 554 | -10/Materials | Discovered new exit (range 11) 706 | -10/Materials | Entered Mines 706 | -10/Mines | Accompanied by 1 ally 748 | -10/Mines | Learned location of Storage (-8) 845 | -10/Mines | Discovered new exit (range 12) 883 | -10/Mines | Received a Rocket Launcher from a helpful Derelict 1000 | -10/Mines | Discovered new exit (range 14) 1324 | -10/Mines | Entered Materials 1324 | -9/Materials | Evolved 2 slots: Utility x1, Weapon x1 1674 | -9/Materials | Lost 3 parts (1n2w) 1933 | -9/Materials | Core integrity fell below 50% 1956 | -9/Materials | Destroyed 10 combat bots 2033 | -9/Materials | Discovered new exit (range 12) 2069 | -9/Materials | Entered Mines 2075 | -9/Mines | Build established: Hauler-Gunner 2212 | -9/Mines | Assisted by bots powering up and referring to "LRC-V3" 2292 | -9/Mines | Discovered new exit (range 10) 2383 | -9/Mines | Assembled infested the area 2467 | -9/Mines | Met 8R-AWN 2506 | -9/Mines | Discovered new exit (range 5) 2514 | -9/Mines | Entered Exiles 2587 | -9/Exiles | Welcomed by 8R-AWN 2618 | -9/Exiles | Met EX-HEX 2710 | -9/Exiles | Build established: Hauler-Mutant 2729 | -9/Exiles | Met EX-BIN 2769 | -9/Exiles | Aligned with FarCom system 2771 | -9/Exiles | Given EX-Vault access code 2818 | -9/Exiles | Opened EX-Vault 2834 | -9/Exiles | Found Gui. Plasma Cannon 2873 | -9/Exiles | Warned to stay clear of 0b10 Research branches 2925 | -9/Exiles | Met EX-DEC 3074 | -9/Exiles | Discovered new exit (range 10) 3089 | -9/Exiles | Left Exiles lab with Gui. Plasma Cannon 3089 | -9/Exiles | Entered Mines 3435 | -8/Mines | Build established: Hauler-Skirmisher 3760 | -8/Mines | Crushed by falling debris 3760 | -8/Mines | Core integrity fell below 20% 3853 | -8/Mines | Discovered new exit (range 13) 3977 | -8/Mines | Discovered new exit (range 9) 4135 | -8/Mines | Build established: Hauler-Mutant 4576 | -8/Mines | Entered Materials 4576 | -8/Materials | Evolved 2 slots: Propulsion x1, Utility x1 4699 | -8/Materials | Identified exit to Garrison 4701 | -8/Materials | Entered Garrison 4807 | -8/Garrison | Triggered checkpoint 4846 | -8/Garrison | Destroyed 9 combat bots 4858 | -8/Garrison | Triggered checkpoint 4942 | -8/Garrison | Discovered new exit (range 15) 5100 | -8/Garrison | Triggered checkpoint 5237 | -8/Garrison | Discovered new exit (range 10) 5401 | -8/Garrison | Discovered new exit (range 10) 5428 | -8/Garrison | Installed Relay Interface Framework 5468 | -8/Garrison | Triggered checkpoint 5536 | -8/Garrison | Garrison Relay disabled 5760 | -8/Garrison | Garrison Relay disabled 5892 | -8/Garrison | Triggered checkpoint 5916 | -8/Garrison | Garrison Relay disabled 6076 | -8/Garrison | Triggered checkpoint 6232 | -8/Garrison | Garrison Relay disabled 6343 | -8/Garrison | Entered Materials 6594 | -8/Materials | Identified exit to Garrison 6596 | -8/Materials | Entered Garrison 6730 | -8/Garrison | Triggered checkpoint 6856 | -8/Garrison | Triggered checkpoint 6939 | -8/Garrison | Crushed by falling debris 6951 | -8/Garrison | Crushed by falling debris 6983 | -8/Garrison | Lost 4 parts (2n2w) 7276 | -8/Garrison | Build established: Hauler-Skirmisher 7358 | -8/Garrison | Discovered new exit (range 15) 7417 | -8/Garrison | Expanded RIF knowledge: Alert ID Control 7724 | -8/Garrison | Entered Factory 7724 | -7/Factory | Evolved 2 slots: Utility x2 7796 | -7/Factory | Sucked down chute 7796 | -7/Factory | Entered Waste 7797 | -7/Waste | Joined by Warlord forces that had cleared the area 7917 | -7/Waste | Build established: Scavenger-Skirmisher 8084 | -7/Waste | Found Damper Plating 8159 | -7/Waste | Discovered new exit (range 13) 8202 | -7/Waste | Found Damper Plating 8209 | -7/Waste | Entered Factory 8209 | -7/Factory | Accompanied by 19 allies 8274 | -7/Factory | Garrison activated, responded to threat 8422 | -7/Factory | Identified exit to Garrison 8447 | -7/Factory | Entered Garrison 8447 | -7/Garrison | Accompanied by 14 allies 8515 | -7/Garrison | Triggered checkpoint 8516 | -7/Garrison | Triggered checkpoint 8516 | -7/Garrison | Triggered checkpoint 8544 | -7/Garrison | Triggered checkpoint 8556 | -7/Garrison | Build established: Hauler-Mutant 8605 | -7/Garrison | Discovered new exit (range 10) 8798 | -7/Garrison | Discovered new exit (range 9) 8825 | -7/Garrison | Expanded RIF knowledge: Program Shield 8902 | -7/Garrison | Triggered checkpoint 8923 | -7/Garrison | Garrison Relay disabled 9073 | -7/Garrison | Triggered checkpoint 9122 | -7/Garrison | Discovered new exit (range 14) 9250 | -7/Garrison | Triggered checkpoint 9291 | -7/Garrison | Garrison Relay disabled 9470 | -7/Garrison | Triggered checkpoint 9552 | -7/Garrison | Garrison Relay disabled 9755 | -7/Garrison | Entered Factory 9755 | -7/Factory | Accompanied by 7 allies 10080 | -7/Factory | Discovered new exit (range 16) 10114 | -7/Factory | Identified exit to Lower Caves 10363 | -7/Factory | Fabricated Hcp. Storage Unit (x1) 10400 | -7/Factory | Identified exit to Garrison 10402 | -7/Factory | Entered Garrison 10418 | -7/Garrison | Triggered checkpoint 10483 | -7/Garrison | Triggered checkpoint 10578 | -7/Garrison | Triggered checkpoint 10640 | -7/Garrison | Triggered checkpoint 10862 | -7/Garrison | Discovered new exit (range 9) 10968 | -7/Garrison | Build established: Bothacker-Skirmisher 11012 | -7/Garrison | Discovered new exit (range 15) 11051 | -7/Garrison | Expanded RIF knowledge: Autoassimilate 11495 | -7/Garrison | Build established: Botlord-Mutant 11552 | -7/Garrison | Triggered checkpoint 11635 | -7/Garrison | Garrison Relay disabled 11853 | -7/Garrison | Build established: Botlord-Skirmisher 11940 | -7/Garrison | Entered Factory 11940 | -6/Factory | Evolved 2 slots: Utility x2 12346 | -6/Factory | Build established: Botlord-Mutant 12403 | -6/Factory | Identified exit to Lower Caves 12467 | -6/Factory | P-60 Hacker assimilated allied Soldier 5a 12554 | -6/Factory | Repaired Gauss Rifle 12581 | -6/Factory | Identified exit to Garrison 12583 | -6/Factory | Entered Garrison 12680 | -6/Garrison | Triggered checkpoint 12744 | -6/Garrison | Garrison Relay disabled 12844 | -6/Garrison | Spotted B-75 Beast 12966 | -6/Garrison | Triggered checkpoint 13102 | -6/Garrison | Triggered checkpoint 13108 | -6/Garrison | P-60 Hacker assimilated allied Soldier 5e 13117 | -6/Garrison | Crushed by falling debris 13262 | -6/Garrison | Discovered new exit (range 11) 13400 | -6/Garrison | Discovered new exit (range 9) 13430 | -6/Garrison | Expanded RIF knowledge: Autoassimilate 13466 | -6/Garrison | Triggered checkpoint 13485 | -6/Garrison | Garrison Relay disabled 13646 | -6/Garrison | Triggered checkpoint 13741 | -6/Garrison | Garrison Relay disabled 13886 | -6/Garrison | Triggered checkpoint 13914 | -6/Garrison | Triggered checkpoint 13925 | -6/Garrison | Lost 5 parts (1p3n1w) 14006 | -6/Garrison | Discovered new exit (range 15) 14066 | -6/Garrison | Triggered checkpoint 14144 | -6/Garrison | Garrison Relay disabled 14270 | -6/Garrison | Entered Factory 14270 | -5/Factory | Evolved 2 slots: Utility x2 14351 | -5/Factory | Build established: Botlord-Skirmisher 14704 | -5/Factory | Build established: Botlord-Mutant 14867 | -5/Factory | Identified exit to Garrison 15113 | -5/Factory | Entered Garrison 15113 | -5/Garrison | Accompanied by 4 allies 15268 | -5/Garrison | Triggered checkpoint 15282 | -5/Garrison | Triggered checkpoint 15356 | -5/Garrison | Lost 3 parts (2n1w) 15512 | -5/Garrison | Discovered new exit (range 11) 15542 | -5/Garrison | Expanded RIF knowledge: Structural Interface 15608 | -5/Garrison | Triggered checkpoint 15791 | -5/Garrison | Garrison Relay disabled 15938 | -5/Garrison | Triggered checkpoint 16046 | -5/Garrison | Garrison Relay disabled 16154 | -5/Garrison | Discovered new exit (range 13) 16374 | -5/Garrison | Triggered checkpoint 16389 | -5/Garrison | Garrison Relay disabled 16546 | -5/Garrison | Triggered checkpoint 16562 | -5/Garrison | Discovered new exit (range 14) 16755 | -5/Garrison | Garrison Relay disabled 16770 | -5/Garrison | Triggered checkpoint 16979 | -5/Garrison | Entered Factory 16979 | -4/Factory | Accompanied by 4 allies 16979 | -4/Factory | Evolved 2 slots: Utility x2 17379 | -4/Factory | Found Prototype Processor 17380 | -4/Factory | Identified Exp. Melee Analysis Suite 17621 | -4/Factory | Repaired Chainsword 18262 | -4/Factory | Garrison activated, responded to threat 18333 | -4/Factory | Identified exit to Garrison 18335 | -4/Factory | Entered Garrison 18344 | -4/Garrison | Expanded RIF knowledge: Autooverride 18426 | -4/Garrison | Triggered checkpoint 18531 | -4/Garrison | Garrison Relay disabled 18979 | -4/Garrison | Spotted B-86 Titan 19190 | -4/Garrison | Crushed by falling debris 19218 | -4/Garrison | Triggered checkpoint 19280 | -4/Garrison | Triggered checkpoint 19369 | -4/Garrison | Triggered checkpoint 19415 | -4/Garrison | Discovered new exit (range 10) 19436 | -4/Garrison | Triggered checkpoint 19445 | -4/Garrison | Lost 3 parts (1n2w) 19497 | -4/Garrison | Garrison Relay disabled 19659 | -4/Garrison | Allies destroyed B-86 Titan 19782 | -4/Garrison | Discovered new exit (range 9) 19841 | -4/Garrison | Garrison Relay disabled 19874 | -4/Garrison | Triggered checkpoint 19956 | -4/Garrison | Triggered checkpoint 20102 | -4/Garrison | Discovered new exit (range 5) 20134 | -4/Garrison | Triggered checkpoint 20164 | -4/Garrison | Garrison Relay disabled 20227 | -4/Garrison | Entered Research 20227 | -3/Research | Accompanied by 9 allies 20227 | -3/Research | Evolved 2 slots: Utility x2 20231 | -3/Research | Discovered new exit (range 15) 20308 | -3/Research | Identified exit to Garrison 20311 | -3/Research | Entered Garrison 20311 | -3/Garrison | Accompanied by 9 allies 20764 | -3/Garrison | Triggered checkpoint 20805 | -3/Garrison | Garrison Relay disabled 20914 | -3/Garrison | Triggered checkpoint 20914 | -3/Garrison | Triggered checkpoint 20962 | -3/Garrison | Spotted B-86 Titan 21085 | -3/Garrison | Lost 12 parts (2p2n1u7w) 21135 | -3/Garrison | Discovered new exit (range 5) 21145 | -3/Garrison | Expanded RIF knowledge: Coupler Efficiency 21178 | -3/Garrison | Triggered checkpoint 21181 | -3/Garrison | Core integrity fell below 50% 21284 | -3/Garrison | Triggered checkpoint 21285 | -3/Garrison | Allies destroyed B-86 Titan 21296 | -3/Garrison | Triggered checkpoint 21536 | -3/Garrison | Garrison Relay disabled 21789 | -3/Garrison | Discovered new exit (range 4) 21850 | -3/Garrison | Triggered checkpoint 21943 | -3/Garrison | Garrison Relay disabled 22153 | -3/Garrison | Discovered new exit (range 9) 22220 | -3/Garrison | Triggered checkpoint 22281 | -3/Garrison | Garrison Relay disabled 22430 | -3/Garrison | Entered Research 22430 | -2/Research | Accompanied by 8 allies 22430 | -2/Research | Evolved 2 slots: Propulsion x1, Utility x1 22479 | -2/Research | Repaired Imp. Remote Datajack 22614 | -2/Research | Fabricated Adv. Treads (x2) 23417 | -2/Research | Garrison activated, responded to threat 23419 | -2/Research | Identified exit to Garrison 23422 | -2/Research | Entered Garrison 23422 | -2/Garrison | Accompanied by 1 ally 23490 | -2/Garrison | Triggered checkpoint 23507 | -2/Garrison | Garrison Relay disabled 23855 | -2/Garrison | Spotted B-90 Cyclops 24260 | -2/Garrison | Destroyed B-90 Cyclops 24275 | -2/Garrison | Lost 8 parts (2n2u4w) 24360 | -2/Garrison | Triggered checkpoint 24670 | -2/Garrison | Triggered checkpoint 24748 | -2/Garrison | System corruption reached 10% 24792 | -2/Garrison | Lost 3 parts (3u) 24869 | -2/Garrison | Discovered new exit (range 10) 24901 | -2/Garrison | Expanded RIF knowledge: Autooverride 25184 | -2/Garrison | Triggered checkpoint 25221 | -2/Garrison | Garrison Relay disabled 25366 | -2/Garrison | Phase Generator disabled 25652 | -2/Garrison | Triggered checkpoint 25743 | -2/Garrison | Garrison Relay disabled 25864 | -2/Garrison | Triggered checkpoint 25949 | -2/Garrison | Discovered new exit (range 13) 26024 | -2/Garrison | Triggered checkpoint 26097 | -2/Garrison | Garrison Relay disabled 26244 | -2/Garrison | Entered Access 26244 | -1/Access | Accompanied by 5 allies 26244 | -1/Access | Evolved 2 slots: Utility x1, Weapon x1 26461 | -1/Access | Found Gamma Bomb Array 26576 | -1/Access | Found Gamma Bomb Array 26644 | -1/Access | Garrison activated, responded to threat 26673 | -1/Access | Identified exit to Garrison 26736 | -1/Access | Entered Garrison 26736 | -1/Garrison | Accompanied by 7 allies 27056 | -1/Garrison | Triggered checkpoint 27057 | -1/Garrison | Garrison Relay disabled 27236 | -1/Garrison | Spotted B-99 Colossus 27261 | -1/Garrison | Triggered checkpoint 27264 | -1/Garrison | Triggered checkpoint 27267 | -1/Garrison | Destroyed B-99 Colossus 27268 | -1/Garrison | Triggered checkpoint 27328 | -1/Garrison | Triggered checkpoint 27361 | -1/Garrison | Garrison Relay disabled 27417 | -1/Garrison | Discovered new exit (range 15) 27540 | -1/Garrison | Triggered checkpoint 27597 | -1/Garrison | Discovered new exit (range 8) 27640 | -1/Garrison | Triggered checkpoint 27653 | -1/Garrison | Garrison Relay disabled 27853 | -1/Garrison | Discovered new exit (range 10) 27898 | -1/Garrison | Expanded RIF knowledge: Coupler Efficiency 27935 | -1/Garrison | Triggered checkpoint 28036 | -1/Garrison | Garrison Relay disabled 28290 | -1/Garrison | Entered Access 28290 | -1/Access | Accompanied by 17 allies 28293 | -1/Access | Maximum security lockdown engaged 28489 | -1/Access | Garrison activated, responded to threat 28538 | -1/Access | Spotted Investigator 28554 | -1/Access | Destroyed Investigator 28630 | -1/Access | Lost 11 parts (3n5u3w) 28685 | -1/Access | Core integrity fell below 50% 28707 | -1/Access | Energy Cycler disabled 28711 | -1/Access | Core integrity fell below 20% 28715 | -1/Access | Destroyed by P-80 Master with Gamma Rifle Last Messages --------------- 28686_ Relay Coupler [Behemoth] blown off. 28686_ Relay Coupler [Duelist] blown off. 28686_ RIF reveals location of hidden door. 28689_ S-43 Plague emerges from the garrison. 28689_ Relay Coupler [Grunt] destroyed. 28694_ RIF reveals location of hidden door. 28696_ Slug penetrates Wall. 28707_ ALERT: Power surge detected, dispatching additional patrols. 28707_ Energy Cycler explodes. 28707_ E-15 Imp destroyed. 28708_ Relay Coupler [Swarmer] destroyed. 28709_ Enh. Nova Cannon destroyed. 28710_ Acquired Unknown Slashing Weapon. 28711_ Identified Segregator. 28713_ Segregator destroyed. 28713_ Slug penetrates Wall. 28715_ Relay Coupler [Behemoth] destroyed. [Achievement: 20k Club] [Achievement: 30k Club] [Achievement: 40k Club] Map ----- +----------------------------------------------------+ | ?????????????????????????????????????????????????? | | ?????????????????????????????????????????????????? | | ?????????????????????????????????????????????????? | | ?????????????????????????????????????????????????? | | ?????????????????????????????????????????????????? | | ?????????????????????????????????????????????????? | | ?????????????????????????????????????????????????? | | ?????????????????????????????????????????????????? | | ????????????????????????????d????????????????????? | | ?????????????????????????????????????????????????? | | ?????????????????????????????????????????????????? | | ?????????????????????????????????????????????????? | | ?????????????????????????????????????????????????? | | ?????????????????????????????????????????????????? | | ?????????????????????????????????????????????????? | | ?????????????????????????????????????????????????? | | ?????????????????????????????????????????????????? | | ?????????????????????????????????????????????????? | | ?????????????????????????????????????????????????? | | ?????????????????????????????????????????????????? | | ?????????????????????????????????????????????????? | | ?????????????????????????????????????????????????? | | ????????##############???????????????????????????? | | ????????# #???????#???????????????????? | | ????????# ####### #???????????????????? | | ????????# ; @ #???????????????????? | | ????????# ; #???????????????????? | | ????????# ; #???????????????????? | | ????????# ; #???????????????????? | | ????????# !; #???????????????????? | | ????????# ; #???????????????????? | | ????????# ; #???????????????????? | | ????????# ; #?????????? w ?????? | | ????????# ; #?????????? ???? | | ????????#s ggg s #s #?????????? #??? | | ??###+####g###########hpgg #????????? #??? | | ??# #??????# g g #????????? #??? | | ??+ #??????#gg #????????? #??? | | ??# ######## g gg########## #### | | ??# # ggg ghi | | ??# # g gbg | | ??# #bi"pgl gg | | ??# / "%%" i Y w ! | | ??# "" # "" %* | | ??# "" # "*[ | | ??# """""" # %| | | ??# """""" #?#####/###+########## #### =% | | ??# "" ###### #??# #?# * | | ??+ "" / + #??# #?## " | | ??################## "" #??# #??#### | +----------------------------------------------------+ Best States ------------- Heat Dissipation 87 Energy Generation 21 Energy Capacity 325 Matter Stores 300 Matter Capacity 300 Sight Range 16 Terrain Scan Range 20 Terrain Scan Density 10 Armor Coverage 2400 Resistance: EM 90 Phase Shifting 15 Evasion (%) 50 Targeting Accuracy 8 Melee Accuracy 12 Target Analysis 8 Recoil Reduction 4 Energy Filtering 50 Offensive Hacking 36 Item Schematics ----------------- Hcp. Storage Unit | -9/Materials | Scanalyzed Hacking Suite | -9/Materials | Scanalyzed Lgt. Treads | -9/Materials | Scanalyzed Remote Datajack | -7/Factory | Hacked Adv. Terrain Scanner | -7/Factory | Scanalyzed Adv. Treads | -6/Factory | Hacked Chainsword | -4/Factory | Scanalyzed Quantum Reactor | -2/Research | Hacked Robot Schematics ------------------ None Fabricated ------------ Hcp. Storage Unit | x1 | -7/Factory Adv. Treads | x2 | -2/Research Alien Tech Used ----------------- None Achievements -------------- 20k Club 30k Club 40k Club Beloved Generalissimo Gunslinger Pwned Turtlemind Challenges ------------ None Game ------ Seed LinearIntegrationDiverter Manual? 0 Play Time 04:34:01 Cumulative 185.5 hours Start 2019.11.19 @ 21:06:11 End 2019.11.20 @ 22:41:22 Sessions 3 Manual Loads 0 Difficulty Rogue Special Mode None Game No. 254 Rogue 254 Adventurer 0 Explorer 0 Win Type - Total 1 Types 1/0/0/0/0/0/0 Lore% 51 Gallery% 70 Achievement% 48 Wizard Run 0 Options --------- ASCII 0 Keyboard 0 Movement Numpad Keybinds 0 Fullscreen 1 Font 16/Terminus Map View 75x55 Tactical HUD 1 Map Filters NONE Filters NONE Steam 1 RUN: 9cf71644-2e18-4853-a91d-ea73722efac2